bitfinex/quotes_ETHUSD_20240924
["timestamp","ask_amount","ask_price","bid_price","bid_amount"]
[1727144466229,7.84745316,2623.1,2623.0,7.1932]
[1727144466761,10.23070629,2623.1,2623.0,7.1932]
[1727144466967,10.15444994,2623.1,2623.0,7.1932]
[1727144467659,7.77119681,2623.1,2623.0,7.1932]
[1727144467874,7.22119681,2623.1,2623.0,7.1932]
[1727144468027,8.41276402,2623.1,2623.0,7.1932]
[1727144468332,8.41279946,2623.1,2623.0,7.1932]
[1727144468534,4.22119681,2623.1,2623.0,7.1932]
[1727144469743,0.07261681,2623.1,2623.0,7.1932]
[1727144470477,3.8821399,2623.1,2623.0,7.1932]
[1727144470838,0.0698599,2623.1,2623.0,7.1932]
[1727144471522,3.8821399,2623.1,2623.0,7.1932]
[1727144472155,4.2184399,2623.1,2623.0,7.1932]
[1727144474763,7.40919416,2623.1,2623.0,7.1932]
[1727144474978,12.15060627,2623.1,2623.0,7.1932]
[1727144475626,12.54787597,2623.1,2623.0,7.1932]
[1727144477151,12.54787597,2623.1,2623.0,7.6932]
[1727144477759,12.15061455,2623.1,2623.0,7.6932]
[1727144478740,11.60061455,2623.1,2623.0,7.6932]
[1727144479452,10.40919416,2623.1,2623.0,7.6932]
[1727144479660,4.67663971,2623.1,2623.0,7.6932]
[1727144480877,0.0698599,2623.1,2623.0,7.6932]
[1727144481247,4.2184399,2623.1,2623.0,8.1932]
[1727144481453,3.8821399,2623.1,2623.0,8.1932]
[1727144482592,0.0698599,2623.1,2623.0,8.9442]
[1727144482771,3.8821399,2623.1,2623.0,8.9442]
[1727144483452,0.0698599,2623.1,2623.0,8.9442]
[1727144483652,0.0698599,2623.1,2623.0,9.83862]
[1727144483856,4.60662981,2623.3,2623.0,9.83862]
[1727144484168,0.06521201,2623.2,2623.0,9.83862]
[1727144484688,0.06521201,2623.1,2623.0,9.83862]
[1727144485044,4.60662981,2623.3,2623.0,9.83862]
[1727144485376,0.06521201,2623.2,2623.0,10.33862]
[1727144485581,0.85971182,2623.2,2623.0,10.33862]
[1727144485786,0.79449981,2623.2,2623.0,10.33862]
[1727144485947,0.06521201,2623.1,2623.0,10.33862]
[1727144486345,4.60659981,2623.3,2623.0,10.33862]
[1727144486542,4.60659981,2623.3,2623.0,9.4442]
[1727144486543,0.06521201,2623.1,2623.0,9.4442]
[1727144486748,4.60659981,2623.3,2623.0,9.4442]
[1727144486978,0.06521201,2623.1,2623.0,9.4442]
[1727144487178,4.60658981,2623.3,2623.0,9.4442]
[1727144487381,0.06521201,2623.1,2623.0,9.4442]
[1727144487559,4.60658981,2623.3,2623.0,9.4442]
[1727144487762,0.06521201,2623.1,2623.0,9.4442]
[1727144487961,4.60658981,2623.3,2623.0,9.4442]
[1727144488287,3.81216,2623.2,2623.0,9.4442]
[1727144488587,0.85976355,2623.2,2623.0,9.4442]
[1727144489342,0.85976355,2623.2,2623.0,9.9442]
[1727144489741,4.67191355,2623.2,2623.0,9.9442]
[1727144490691,0.79449981,2623.1,2623.0,9.9442]
[1727144490982,4.14858,2623.1,2623.0,9.1932]
[1727144491184,4.67232099,2623.1,2623.0,9.1932]
[1727144492173,11.25999583,2623.1,2623.0,9.1932]
[1727144492383,5.06930967,2623.1,2623.0,9.1932]
[1727144492587,1.25702967,2623.1,2623.0,9.1932]
[1727144492813,0.85995363,2623.1,2623.0,9.1932]
[1727144492989,4.67223363,2623.1,2623.0,9.1932]
[1727144493485,4.67223363,2623.1,2623.0,9.6932]
[1727144493486,7.40487544,2623.1,2623.0,9.6932]
[1727144493670,8.99355725,2623.1,2623.0,9.6932]
[1727144494051,11.99355725,2623.1,2623.0,9.6932]
[1727144494362,10.40487544,2623.1,2623.0,9.6932]
[1727144494556,10.95487544,2623.1,2623.0,9.6932]
[1727144494894,10.40487544,2623.1,2623.0,9.6932]
[1727144495058,12.39078941,2623.1,2623.0,9.6932]
[1727144495861,5.466633,2623.1,2623.0,9.6932]
[1727144496182,1.25718965,2623.1,2623.0,9.6932]
[1727144496359,3.87782118,2623.1,2623.0,9.6932]
[1727144496616,0.86008017,2623.1,2623.0,9.6932]
[1727144496804,0.86008017,2623.1,2623.0,10.66252]
[1727144497010,0.86008017,2623.1,2623.0,11.47372]
[1727144497241,0.86008017,2623.1,2623.0,10.5044]
[1727144497448,0.86005042,2623.1,2623.0,14.31682]
[1727144497659,0.06554118,2623.1,2623.0,17.81743836]
[1727144497940,1.19164847,2623.9,2623.5,0.8112]
[1727144497941,0.79450924,2623.9,2623.5,0.8112]
[1727144498308,0.06098087,2623.8,2623.5,0.8112]
[1727144498512,4.60603924,2623.7,2623.5,0.8112]
[1727144498820,0.79450924,2623.7,2623.5,0.8112]
[1727144499008,0.79450924,2623.9,2623.6,0.462304]
[1727144499417,0.79450924,2624.0,2623.6,0.462304]
[1727144499845,4.60550924,2624.0,2623.6,0.462304]
[1727144500042,0.79450924,2623.9,2623.5,0.8112]
[1727144501147,3.81128,2623.8,2623.5,0.8112]
[1727144501371,3.81121,2623.9,2623.5,0.8112]
[1727144501708,4.60571924,2623.9,2623.5,0.8112]
[1727144502145,3.81121,2623.9,2623.5,0.8112]
[1727144503248,0.79450924,2624.0,2623.5,0.8112]
[1727144503458,0.83231814,2624.1,2623.6,0.8112]
[1727144503613,0.83231814,2624.1,2623.7,0.46228]
[1727144503814,0.0378089,2624.1,2623.7,0.46228]
[1727144504755,0.0378089,2624.1,2623.8,0.8238]
[1727144505543,0.06124407,2624.0,2623.8,0.8238]
[1727144505746,0.06124407,2624.0,2623.9,0.509746]
[1727144507145,0.06124407,2624.0,2623.8,0.8238]
[1727144508559,0.06124407,2624.0,2623.9,3.81112]
[1727144509152,0.06124407,2624.0,2623.9,0.8238]
[1727144511359,0.06124407,2624.0,2623.9,4.63492]
[1727144511658,0.06124407,2624.0,2623.9,4.71112777]
[1727144511863,0.06124407,2624.0,2623.9,5.92866997]
[1727144512028,0.06124407,2624.0,2623.9,9.11942423]
[1727144512363,0.0378089,2624.1,2624.0,3.81097]
[1727144513622,0.09991301,2624.1,2624.0,3.81097]
[1727144513823,0.09991301,2624.1,2623.9,5.8524622]
[1727144514023,0.09991301,2624.1,2624.0,0.58524622]
[1727144514664,0.09991301,2624.1,2624.0,1.40904622]
[1727144516749,0.0378089,2624.1,2624.0,1.40904622]
[1727144517243,0.09996938,2624.1,2624.0,1.40904622]
[1727144517443,0.09996938,2624.1,2624.0,5.29623091]
[1727144517649,0.0378089,2624.1,2624.0,5.22001622]
[1727144518044,0.0378089,2624.1,2624.0,5.29622206]
[1727144518564,0.0378089,2624.1,2624.0,5.22001622]
[1727144519469,0.09996938,2624.1,2624.0,5.22001622]
[1727144519973,0.0378089,2624.1,2624.0,5.29622216]
[1727144520373,0.0378089,2624.1,2624.0,5.22001622]
[1727144520742,0.0378089,2624.1,2624.0,5.29622205]
[1727144520934,0.0378089,2624.1,2624.0,12.48922205]
[1727144521138,0.0378089,2624.1,2624.0,12.41301622]
[1727144521652,0.0378089,2624.1,2624.0,15.60377048]
[1727144521857,0.0378089,2624.1,2624.0,19.14115074]
[1727144522379,0.0762,2624.3,2624.2,5.13858]
[1727144522583,0.0762,2624.3,2624.2,15.70497042]
[1727144523491,0.0762,2624.3,2624.2,15.15497042]
[1727144523654,0.0762,2624.3,2624.2,11.4268359]
[1727144524611,0.0762,2624.3,2624.2,3.7779]
[1727144524760,0.0762,2624.3,2624.2,0.7779]
[1727144524963,0.0762,2624.3,2624.2,3.7779]
[1727144525194,0.0762,2624.3,2624.2,7.58858]
[1727144525195,0.13881133,2624.3,2624.2,7.58858]
[1727144527011,0.13881133,2624.3,2624.2,7.66478555]
[1727144527310,0.13881133,2624.3,2624.2,9.90924615]
[1727144527525,0.0762,2624.3,2624.2,9.8330406]
[1727144528499,0.0762,2624.3,2624.2,6.0223606]
[1727144529180,0.13870334,2624.3,2624.2,6.0223606]
[1727144529877,0.0762,2624.3,2624.2,6.0223606]
[1727144530084,0.13870334,2624.3,2624.2,6.0223606]
[1727144531976,0.13870334,2624.3,2624.2,9.8330406]
[1727144532725,0.13870334,2624.3,2624.2,6.0223606]
[1727144533015,0.13870334,2624.3,2624.2,9.8330406]
[1727144533203,0.13870334,2624.3,2624.2,13.56117512]
[1727144533408,0.0762,2624.3,2624.2,13.56117512]
[1727144533599,0.0762,2624.3,2624.2,10.37042086]
[1727144535319,0.0762,2624.3,2624.2,9.8330406]
[1727144535702,0.13870334,2624.3,2624.2,6.0223606]
[1727144535895,0.0762,2624.3,2624.2,2.2444606]
[1727144536106,0.13870334,2624.3,2624.2,2.2444606]
[1727144536486,0.0762,2624.3,2624.2,2.2444606]
[1727144536688,0.13888181,2624.3,2624.2,2.2444606]
[1727144536887,0.0762,2624.3,2624.2,9.8539406]
[1727144537515,0.13888181,2624.3,2624.2,9.8539406]
[1727144538099,0.13888181,2624.3,2624.2,6.0432606]
[1727144538307,0.0762,2624.3,2624.2,9.8539406]
[1727144538527,0.13888181,2624.3,2624.2,9.8539406]
[1727144538706,0.0762,2624.3,2624.2,9.8539406]
[1727144538902,0.0762,2624.3,2624.1,3.81073]
[1727144538903,3.81068,2624.2,2624.0,7.193]
[1727144539111,4.25053,2624.1,2624.0,7.193]
[1727144539429,7.87678635,2624.1,2624.0,7.193]
[1727144539631,7.93737876,2624.1,2624.0,7.193]
[1727144539941,9.05277088,2624.1,2624.0,7.193]
[1727144540439,9.44993423,2624.1,2624.0,7.193]
[1727144540798,8.64984141,2624.1,2624.0,7.193]
[1727144541202,7.31112241,2624.1,2624.0,7.193]
[1727144541405,8.10020904,2624.1,2624.0,7.193]
[1727144541832,7.31112241,2624.1,2624.0,7.193]
[1727144542234,8.17646539,2624.1,2624.0,7.193]
[1727144542436,8.10020904,2624.1,2624.0,7.193]
[1727144543427,7.31112241,2624.1,2624.0,7.193]
[1727144543723,8.1008436,2624.1,2624.0,7.193]
[1727144544044,5.1008436,2624.1,2624.0,7.193]
[1727144544244,4.31112241,2624.1,2624.0,7.193]
[1727144545742,3.87142241,2624.1,2624.0,7.193]
[1727144546351,0.06059241,2624.1,2624.0,7.193]
[1727144547213,3.87142241,2624.1,2624.0,7.193]
[1727144548406,0.06059241,2624.1,2624.0,7.193]
[1727144548712,0.06012267,2624.1,2624.0,8.7111]
[1727144548935,0.0762,2624.3,2624.0,8.7111]
[1727144549203,0.06012267,2624.1,2624.0,8.7111]
[1727144549354,0.0762,2624.3,2624.0,8.7111]
[1727144549513,0.0598221,2624.1,2624.0,8.7111]
[1727144549713,0.0762,2624.3,2624.0,8.7111]
[1727144550052,0.0598221,2624.2,2624.1,1.633309]
[1727144550414,0.0762,2624.3,2624.1,1.633309]
[1727144550627,0.0598221,2624.2,2624.1,1.633309]
[1727144550827,3.81068,2624.2,2624.1,1.633309]
[1727144551054,0.0598221,2624.2,2624.0,7.193]
[1727144551254,3.81083,2624.1,2624.0,7.193]
[1727144551618,3.8706521,2624.1,2624.0,7.193]
[1727144551809,4.3103521,2624.1,2624.0,7.193]
[1727144553269,7.87115791,2624.1,2624.0,7.193]
[1727144553567,13.44966973,2624.1,2624.0,7.193]
[1727144553872,13.37341338,2624.1,2624.0,7.193]
[1727144554063,12.96900907,2624.1,2624.0,7.193]
[1727144554566,11.78460156,2624.1,2624.0,7.193]
[1727144554769,12.96852402,2624.1,2624.0,7.193]
[1727144555959,12.41852402,2624.1,2624.0,7.193]
[1727144556136,11.23460156,2624.1,2624.0,7.193]
[1727144556693,7.3103521,2624.1,2624.0,7.193]
[1727144557033,8.09979087,2624.1,2624.0,7.193]
[1727144558031,12.02404033,2624.1,2624.0,7.193]
[1727144558229,11.23460156,2624.1,2624.0,7.193]
[1727144558483,12.02402355,2624.1,2624.0,7.193]
[1727144561365,11.23460156,2624.1,2624.0,7.193]
[1727144561577,12.57402355,2624.1,2624.0,7.193]
[1727144561744,12.96852402,2624.1,2624.0,7.193]
[1727144563952,13.37341338,2624.1,2624.0,7.193]
[1727144564283,13.75667204,2624.1,2624.0,7.193]
[1727144565037,13.75615447,2624.1,2624.0,7.193]
[1727144566036,13.36087738,2624.1,2624.0,7.193]
[1727144566460,11.78460156,2624.1,2624.0,7.193]
[1727144566668,13.36018122,2624.1,2624.0,7.193]
[1727144566874,11.78460156,2624.1,2624.0,7.193]
[1727144567762,13.35990247,2624.1,2624.0,7.193]
[1727144568163,10.35973584,2624.1,2624.0,7.193]
[1727144568364,10.35972078,2624.1,2624.0,7.193]
[1727144568975,10.35979215,2624.1,2624.0,7.193]
[1727144570373,13.35979215,2624.1,2624.0,7.193]
[1727144572653,12.80979215,2624.1,2624.0,7.193]
[1727144572887,9.41634862,2624.1,2624.0,7.193]
[1727144573072,9.0224497,2624.1,2624.0,7.193]
[1727144573270,9.02247132,2624.1,2624.0,7.193]
[1727144573447,9.02247132,2624.1,2623.5,0.821]
[1727144573448,3.81112,2623.9,2623.8,7.193]
[1727144573851,3.87057087,2623.9,2623.8,7.193]
[1727144574355,10.06054525,2623.9,2623.8,7.193]
[1727144575788,9.98709025,2623.9,2623.8,7.193]
[1727144575988,9.98709025,2623.9,2623.8,7.9123]
[1727144577093,9.98709025,2623.9,2623.8,7.193]
[1727144581395,11.76467509,2623.9,2623.8,7.193]
[1727144581699,10.97679025,2623.9,2623.8,7.193]
[1727144581879,12.15853731,2623.9,2623.8,7.193]
[1727144582068,10.97679025,2623.9,2623.8,7.193]
[1727144582671,12.15853731,2623.9,2623.8,7.193]
[1727144583204,11.71883731,2623.9,2623.8,7.193]
[1727144584600,12.11228084,2623.9,2623.8,7.193]
[1727144587294,3.81141,2623.7,2623.6,7.193]
[1727144587467,4.60183725,2623.7,2623.6,7.193]
[1727144587671,4.65957349,2623.7,2623.6,7.193]
[1727144587896,3.86914624,2623.7,2623.6,7.193]
[1727144588141,0.84816349,2623.7,2623.6,8.73]
[1727144588273,0.05773624,2623.7,2623.6,8.73]
[1727144588714,3.81122,2623.9,2623.6,8.73]
[1727144588907,0.05587996,2623.7,2623.6,8.73]
[1727144589206,3.81106,2624.0,2623.7,0.8177]
[1727144589412,3.81106,2624.0,2623.8,0.873]
[1727144589873,0.79042725,2624.1,2623.9,0.8177]
[1727144590073,4.60111725,2624.2,2623.9,0.8177]
[1727144591033,3.81069,2624.2,2623.9,0.8177]
[1727144592109,7.62148,2624.2,2623.9,0.8177]
[1727144593226,3.81069,2624.2,2623.9,0.8177]
[1727144594553,4.60111725,2624.2,2623.9,0.8177]
[1727144597341,0.79042725,2624.2,2623.9,0.8177]
[1727144597707,5.07238087,2624.3,2623.9,0.8177]
[1727144597708,4.67716725,2624.3,2623.9,0.8177]
[1727144598002,0.79042725,2624.2,2623.9,0.8177]
[1727144598343,4.67716725,2624.3,2623.9,0.8177]
[1727144599353,0.0762,2624.3,2624.0,0.7839]
[1727144599505,0.0762,2624.3,2624.2,0.7839]
[1727144601430,3.88673,2624.3,2624.2,0.7839]
[1727144602937,3.9412798,2624.3,2624.2,0.7839]
[1727144608556,3.81092,2624.1,2623.9,0.7839]
[1727144608854,3.81097,2624.0,2623.9,0.7839]
[1727144609148,3.81097,2624.0,2623.7,0.7534]
[1727144609149,3.81112,2623.9,2623.7,0.7534]
[1727144609727,0.0545498,2623.8,2623.7,0.7534]
[1727144609925,0.0545498,2623.8,2623.7,1.54804]
[1727144610255,3.811,2624.0,2623.7,1.54804]
[1727144610420,0.0545498,2623.8,2623.7,1.54804]
[1727144610748,3.811,2624.0,2623.7,1.54804]
[1727144610933,0.0545498,2623.8,2623.7,1.54804]
[1727144611136,3.811,2624.0,2623.7,1.54804]
[1727144611357,0.0545498,2623.8,2623.7,1.54804]
[1727144611514,3.811,2624.0,2623.7,1.54804]
[1727144612010,0.0545498,2623.9,2623.7,1.54804]
[1727144612217,0.0545498,2623.9,2623.8,0.874104]
[1727144612960,3.81141,2623.7,2623.6,7.193]
[1727144613319,7.00138438,2623.7,2623.6,7.193]
[1727144613655,7.05593418,2623.7,2623.6,7.193]
[1727144614016,7.84636143,2623.7,2623.6,7.193]
[1727144615465,8.68127505,2623.7,2623.6,7.193]
[1727144616830,7.49563418,2623.7,2623.6,7.193]
[1727144617024,8.28756322,2623.7,2623.6,7.193]
[1727144617525,7.49563418,2623.7,2623.6,7.193]
[1727144617725,8.28774638,2623.7,2623.6,7.193]
[1727144617958,7.49563418,2623.7,2623.6,7.193]
[1727144618259,8.68127505,2623.7,2623.6,7.193]
[1727144619367,8.24157505,2623.7,2623.6,7.193]
[1727144619857,7.05593418,2623.7,2623.6,7.193]
[1727144620755,3.8659598,2623.7,2623.6,7.9464]
[1727144621171,5.05160067,2623.7,2623.6,7.9464]
[1727144621370,4.65801617,2623.7,2623.6,7.9464]
[1727144621721,7.9242469,2623.7,2623.6,7.193]
[1727144621985,7.84785822,2623.7,2623.6,7.193]
[1727144622423,7.8478745,2623.7,2623.6,7.193]
[1727144622848,8.24157505,2623.7,2623.6,7.193]
[1727144623034,7.05593418,2623.7,2623.6,7.193]
[1727144623259,7.84787287,2623.7,2623.6,7.193]
[1727144624366,7.05593418,2623.7,2623.6,7.193]
[1727144624528,7.84791152,2623.7,2623.6,7.193]
[1727144625160,4.65797492,2623.7,2623.6,7.193]
[1727144625480,0.0545498,2623.7,2623.6,8.74424]
[1727144625768,0.0545498,2623.7,2623.6,12.55579]
[1727144625923,4.99640087,2624.2,2623.6,12.55579]
[1727144625924,4.60283245,2624.2,2623.7,0.7566]
[1727144626124,8.41365245,2624.2,2623.8,0.874424]
[1727144626360,4.60283245,2624.2,2623.8,0.874424]
[1727144626658,0.79207245,2624.1,2623.8,0.874424]
[1727144627066,0.79207245,2624.1,2623.8,1.374424]
[1727144628129,4.60283245,2624.2,2623.8,1.374424]
[1727144628330,4.60283245,2624.2,2623.9,0.2131024]
[1727144628529,8.41364245,2624.2,2623.9,0.2131024]
[1727144629164,4.60283245,2624.2,2623.9,0.2131024]
[1727144629470,4.60283245,2624.2,2624.0,0.7566]
[1727144630272,4.60290245,2624.1,2624.0,0.7566]
[1727144631808,4.60290245,2624.1,2624.0,0.99101264]
[1727144632586,4.60290245,2624.1,2623.8,1.374424]
[1727144632587,3.81112,2623.9,2623.8,1.2566]
[1727144632751,3.81112,2623.9,2623.8,0.5]
[1727144633073,3.86524035,2623.9,2623.8,0.5]
[1727144633244,4.65736435,2623.9,2623.8,0.5]
[1727144636662,8.2408556,2623.9,2623.8,0.5]
[1727144637954,0.84672325,2623.9,2623.8,0.5]
[1727144638155,0.05412035,2623.9,2623.8,2.10156]
[1727144638886,0.05427138,2623.9,2623.8,2.10156]
[1727144639188,4.6035129,2624.1,2623.8,2.10156]
[1727144639353,0.05427138,2623.9,2623.8,2.10156]
[1727144639554,4.6034329,2624.1,2623.8,2.10156]
[1727144639754,0.05427138,2623.9,2623.8,2.10156]
[1727144639954,4.6034329,2624.1,2623.8,2.10156]
[1727144640149,0.05427138,2623.9,2623.8,2.10156]
[1727144640376,4.6034329,2624.1,2623.8,2.10156]
[1727144640685,0.7926029,2623.9,2623.8,1.2566]
[1727144640897,8.46893428,2624.0,2623.8,1.2566]
[1727144641213,0.7926029,2624.0,2623.8,1.2566]
[1727144641485,0.05427138,2623.9,2623.8,1.2566]
[1727144641714,0.05427138,2623.9,2623.8,2.10918184]
[1727144641982,4.6032829,2624.2,2623.8,1.35258184]
[1727144642188,0.05427138,2623.9,2623.8,2.13888184]
[1727144642357,0.7926029,2624.2,2623.9,0.7863]
[1727144643103,0.7926029,2624.2,2624.0,0.07621276]
[1727144643283,0.0762,2624.3,2624.1,4.59712]
[1727144643480,0.0762,2624.3,2624.2,0.7863]
[1727144643654,0.0762,2624.3,2624.2,4.59698]
[1727144644008,0.0762,2624.3,2624.2,4.98818516]
[1727144644284,0.0762,2624.3,2624.2,4.59698]
[1727144644497,0.0762,2624.3,2624.2,5.45990295]
[1727144644849,0.0762,2624.3,2624.2,5.8510201]
[1727144645047,0.0762,2624.3,2624.2,1.64922295]
[1727144646050,0.0762,2624.3,2624.2,5.45990295]
[1727144646253,0.0762,2624.3,2624.2,5.53610255]
[1727144646692,0.0762,2624.3,2624.2,1.64922295]
[1727144647003,0.0762,2624.3,2624.2,5.45990295]
[1727144647354,0.0762,2624.3,2624.2,1.64922295]
[1727144647871,0.13092433,2624.3,2624.2,1.64922295]
[1727144648758,0.13092433,2624.3,2624.2,0.7863]
[1727144651662,0.13092433,2624.3,2624.2,4.59698]
[1727144651958,0.13092433,2624.3,2624.2,0.86250151]
[1727144652158,0.13092433,2624.3,2624.2,0.7863]
[1727144654863,0.0762,2624.3,2624.2,0.7863]
[1727144655063,0.0762,2624.3,2624.2,1.2757741]
[1727144655488,0.0762,2624.3,2624.2,5.0864541]
[1727144655665,0.0762,2624.3,2624.2,5.16264573]
[1727144655878,0.0762,2624.3,2624.2,8.35262011]
[1727144656187,0.0762,2624.3,2624.2,8.27642848]
[1727144656387,0.0762,2624.3,2624.2,8.66693521]
[1727144656776,0.0762,2624.3,2624.2,5.47696083]
[1727144656972,0.0762,2624.3,2624.2,5.0864541]
[1727144657181,0.0762,2624.3,2624.2,5.16264138]
[1727144658200,0.0762,2624.3,2624.2,8.16264138]
[1727144658412,0.0762,2624.3,2624.2,11.66693521]
[1727144658709,0.0762,2624.3,2624.2,8.0864541]
[1727144659280,0.0762,2624.3,2624.2,8.4766035]
[1727144660009,0.0762,2624.3,2624.2,8.86675164]
[1727144660381,0.0762,2624.3,2624.2,8.47660224]
[1727144660912,0.0762,2624.3,2624.2,11.66657662]
[1727144661273,0.0378089,2624.9,2624.2,12.21657662]
[1727144661478,0.0378089,2624.9,2624.8,4.57711]
[1727144662122,0.0930191,2624.9,2624.8,4.65329047]
[1727144662412,0.0378089,2624.9,2624.8,4.65329047]
[1727144663007,0.0378089,2624.9,2624.8,4.57711]
[1727144663211,0.0930191,2624.9,2624.8,4.57711]
[1727144663515,0.0930191,2624.9,2624.8,5.415816]
[1727144664125,0.0378089,2624.9,2624.8,0.838706]
[1727144664421,0.0378089,2624.9,2624.6,0.7673]
[1727144664422,0.0378089,2624.9,2624.6,3.7673]
[1727144664584,0.0555497,2624.8,2624.6,3.7673]
[1727144665305,0.0555497,2624.8,2624.6,7.57728]
[1727144666030,0.0555497,2624.8,2624.6,3.7673]
[1727144666206,0.0555497,2624.8,2624.6,7.57731]
[1727144666537,0.0555497,2624.8,2624.7,4.948698]
[1727144666738,0.0555497,2624.8,2624.7,1.138748]
[1727144669227,0.0555497,2624.8,2624.5,0.811]
[1727144669511,0.0555497,2624.8,2624.5,3.811]
[1727144670415,0.0555497,2624.8,2624.5,0.811]
[1727144671037,0.0555497,2624.8,2624.3,5.84318766]
[1727144671864,3.8653597,2624.8,2624.3,2.03265766]
[1727144672048,3.8653597,2624.8,2624.4,3.81038]
[1727144672049,0.0555497,2624.8,2624.4,3.81038]
[1727144672432,0.0555497,2624.8,2624.5,3.81022]
[1727144674544,0.0555497,2624.8,2624.7,0.811]
[1727144674718,0.0555497,2624.8,2624.6,4.62108]
[1727144674920,0.0555497,2624.8,2624.6,5.464226]
[1727144675315,0.0555497,2624.8,2624.6,5.464146]
[1727144675516,0.0555497,2624.8,2624.7,3.88613664]
[1727144676222,0.0555497,2624.8,2624.7,0.07618664]
[1727144676570,0.0555497,2624.8,2624.7,3.88613664]
[1727144676900,0.0555497,2624.8,2624.7,4.8211649]
[1727144677920,0.0555497,2624.8,2624.7,4.74497826]
[1727144679371,0.0555497,2624.8,2624.7,4.82116265]
[1727144679880,0.05366504,2624.8,2624.7,4.82116265]
[1727144680276,7.61838,2625.3,2624.7,4.82116265]
[1727144680438,3.80916,2625.3,2624.7,4.74497826]
[1727144680644,0.05346143,2625.2,2624.8,0.93659783]
[1727144680848,3.80916,2625.3,2624.8,0.93659783]
[1727144681075,0.05346143,2625.2,2624.8,0.93659783]
[1727144681244,0.05346143,2625.2,2624.9,0.88718392]
[1727144681453,0.0378089,2625.7,2625.2,3.80911]
[1727144681762,0.0378089,2625.7,2625.3,5.07708163]
[1727144681763,0.05175703,2625.6,2625.3,5.07708163]
[1727144682186,0.05175703,2625.6,2625.3,5.000911]
[1727144683952,0.05175703,2625.6,2625.3,0.380911]
[1727144684152,0.05175703,2625.6,2625.1,0.7697]
[1727144684351,3.86051703,2625.6,2625.1,0.7697]
[1727144684781,3.80903,2625.4,2625.0,10.193]
[1727144685167,0.04846169,2625.3,2625.0,10.193]
[1727144688471,0.04846169,2625.3,2625.0,7.193]
[1727144689178,3.80935,2625.2,2625.0,7.193]
[1727144689700,0.04846169,2625.1,2625.0,7.193]
[1727144692194,3.85783169,2625.1,2625.0,7.193]
[1727144693486,0.04846169,2625.1,2625.0,7.193]
[1727144697427,0.84106459,2625.1,2625.0,7.193]
[1727144697939,0.04846169,2625.1,2625.0,7.193]
[1727144698300,0.84106459,2625.1,2625.0,7.193]
[1727144699343,0.04846169,2625.1,2625.0,7.193]
[1727144700580,8.30970329,2625.1,2625.0,7.193]
[1727144700780,3.85783169,2625.1,2625.0,7.193]
[1727144701066,5.92219469,2625.1,2625.0,7.193]
[1727144701273,1.63975896,2625.1,2625.0,7.193]
[1727144701479,1.24206102,2625.1,2625.0,7.193]
[1727144701766,0.04846169,2625.1,2625.0,7.193]
[1727144701965,0.84422691,2625.1,2625.0,7.193]
[1727144702126,0.84422691,2625.1,2625.0,7.9883]
[1727144702978,0.04846169,2625.1,2625.0,8.78713]
[1727144703176,0.04846169,2625.1,2625.0,7.193]
[1727144703382,0.84422691,2625.1,2625.0,7.193]
[1727144705945,0.04846169,2625.1,2625.0,7.9883]
[1727144706134,0.04846169,2625.1,2625.0,11.79782]
[1727144706355,0.04846169,2625.1,2625.0,13.358568]
[1727144706670,0.79576522,2625.4,2625.0,13.358568]
[1727144706877,0.79576522,2625.3,2625.0,9.549048]
[1727144707083,0.84405699,2625.3,2625.0,13.358508]
[1727144707244,0.84405699,2625.3,2625.1,3.80937]
[1727144707467,0.84405699,2625.3,2625.2,1.3358418]
[1727144707828,0.04829177,2625.3,2625.2,2.1311418]
[1727144708034,0.04829177,2625.3,2625.2,5.9403718]
[1727144708539,0.79576522,2625.5,2625.2,5.9403718]
[1727144708875,0.04839562,2625.3,2625.2,5.9403718]
[1727144709531,0.79576522,2625.6,2625.2,5.9403718]
[1727144709741,0.79576522,2625.6,2625.3,0.97497418]
[1727144710268,0.79576522,2625.6,2625.4,3.80888]
[1727144710760,0.83357412,2625.7,2625.4,3.80888]
[1727144710958,0.83357412,2625.7,2625.4,4.60414]
[1727144711165,0.83357412,2625.7,2625.4,4.68030551]
[1727144711345,0.0378089,2625.7,2625.6,3.80865]
[1727144713976,0.0378089,2625.7,2625.6,4.69501113]
[1727144715870,0.0378089,2625.7,2625.6,0.8102]
[1727144716074,0.0378089,2625.7,2625.5,0.56552797]
[1727144716231,0.08635555,2625.7,2625.5,0.56552797]
[1727144716437,0.0378089,2625.7,2625.5,0.56552797]
[1727144716673,0.04854665,2625.6,2625.4,0.8102]
[1727144716879,0.04854665,2625.6,2625.2,1.3358418]
[1727144717172,0.04854665,2625.6,2625.1,0.62542365]
[1727144717173,3.80911,2625.3,2625.1,0.62542365]
[1727144717383,3.80911,2625.3,2624.9,0.8102]
[1727144717672,0.04888176,2625.2,2625.1,0.80032]
[1727144718029,4.60462522,2625.5,2625.1,0.80032]
[1727144718235,0.04888176,2625.2,2625.1,0.80032]
[1727144718473,3.80886,2625.5,2625.1,0.80032]
[1727144718633,0.04888176,2625.2,2625.1,0.80032]
[1727144718838,3.80886,2625.5,2625.1,0.80032]
[1727144719058,0.04888176,2625.2,2625.1,0.80032]
[1727144719269,0.79576522,2625.6,2625.1,0.80032]
[1727144719580,4.60463522,2625.5,2624.9,4.61975]
[1727144719739,3.85775176,2625.5,2625.0,7.26912186]
[1727144720332,3.85775176,2625.5,2625.0,11.07861186]
[1727144720530,3.85775176,2625.5,2625.1,1.56983619]
[1727144721983,3.80897,2625.4,2625.1,1.56983619]
[1727144722205,3.80897,2625.4,2625.0,7.193]
[1727144722206,3.80924,2625.2,2625.0,7.193]
[1727144722769,0.04888176,2625.1,2625.0,7.193]
[1727144723180,3.80908,2625.3,2625.0,7.193]
[1727144723487,0.04888176,2625.1,2625.0,7.193]
[1727144723985,3.80908,2625.3,2625.0,7.193]
[1727144724187,0.04888176,2625.1,2625.0,7.193]
[1727144724356,0.04888176,2625.1,2625.0,7.99332]
[1727144725458,3.85825176,2625.1,2625.0,7.193]
[1727144726504,0.04888176,2625.1,2625.0,7.193]
[1727144726861,3.85825176,2625.1,2625.0,7.193]
[1727144727061,0.04888176,2625.1,2625.0,7.193]